bitfinex/quotes_ETHUSD_20250115
["timestamp","ask_amount","ask_price","bid_price","bid_amount"]
[1736941278139,7.69346093,3202.1,3202.0,0.25]
[1736941278339,7.65441899,3202.1,3202.0,0.25]
[1736941281427,6.67295,3202.1,3202.0,0.25]
[1736941283627,3.67295,3202.1,3202.0,0.25]
[1736941283839,0.55,3202.1,3202.0,0.25]
[1736941284043,3.12279,3202.3,3202.2,0.25]
[1736941284601,3.67279,3202.3,3202.2,0.25]
[1736941286560,4.04397293,3202.3,3202.2,0.25]
[1736941286719,3.67285,3202.2,3202.1,0.25]
[1736941286925,3.71188964,3202.2,3202.1,0.25]
[1736941287837,3.67285,3202.2,3202.1,0.25]
[1736941289565,3.71188939,3202.2,3202.1,0.25]
[1736941289749,0.55,3202.3,3202.2,0.25]
[1736941290118,3.71178979,3202.3,3202.2,0.25]
[1736941290568,3.67275,3202.3,3202.2,0.25]
[1736941293367,0.55,3202.5,3202.4,0.5]
[1736941293579,3.12243,3202.7,3202.6,0.5]
[1736941293725,6.12222,3202.9,3202.8,0.25]
[1736941293918,6.16125277,3202.9,3202.8,0.25]
[1736941295241,6.71125277,3202.9,3202.8,0.25]
[1736941295435,7.89854707,3202.9,3202.8,0.25]
[1736941295620,3.12236,3202.7,3202.6,0.5]
[1736941295938,7.48269428,3202.7,3202.6,0.5]
[1736941296124,7.44366,3202.7,3202.6,0.5]
[1736941296329,8.98342439,3202.7,3202.6,0.5]
[1736941296534,8.98342439,3202.7,3202.6,0.25]
[1736941296742,3.67256,3202.5,3202.4,0.5]
[1736941296967,3.71159663,3202.5,3202.4,0.5]
[1736941297664,3.67256,3202.5,3202.4,0.5]
[1736941298273,0.55,3202.5,3202.4,0.5]
[1736941298785,0.55,3202.5,3202.4,1.2939]
[1736941306284,0.55,3202.5,3202.4,0.5]
[1736941306590,4.44386,3202.5,3202.4,0.5]
[1736941306791,4.8921494,3202.5,3202.4,0.5]
[1736941307769,4.8921494,3202.5,3202.4,0.25]
[1736941308147,4.93118716,3202.5,3202.4,0.5]
[1736941308980,4.93118716,3202.5,3201.9,0.7939]
[1736941308981,3.12285,3202.2,3202.1,0.25]
[1736941309178,7.44284153,3202.2,3202.1,0.5]
[1736941309371,8.46034711,3202.2,3202.1,0.25]
[1736941309571,8.46034711,3202.2,3202.1,0.5]
[1736941309892,8.46034711,3202.2,3201.9,0.25]
[1736941309893,0.55,3202.1,3201.9,0.25]
[1736941310067,3.67324,3201.8,3201.7,0.5]
[1736941310455,3.71228488,3201.8,3201.7,0.5]
[1736941313293,3.67324,3201.8,3201.7,0.5]
[1736941314089,3.71228542,3201.8,3201.7,0.5]
[1736941314993,3.67324,3201.8,3201.7,0.5]
[1736941316202,0.55,3201.8,3201.7,0.5]
[1736941316416,3.87385,3202.2,3202.1,0.25]
[1736941316743,4.61254417,3202.2,3202.1,0.25]
[1736941316913,5.16254417,3202.2,3202.1,0.25]
[1736941317231,7.44284013,3202.2,3202.1,0.25]
[1736941317528,3.67314,3201.9,3201.8,0.5]
[1736941318940,0.55,3201.9,3201.8,0.5]
[1736941319237,0.58904288,3201.9,3201.8,0.5]
[1736941321539,3.71218288,3201.9,3201.8,0.5]
[1736941323230,3.67314,3201.9,3201.8,0.5]
[1736941329107,4.040454,3201.9,3201.8,0.5]
[1736941329841,0.55,3201.6,3201.5,0.25]
[1736941330058,0.58904865,3201.6,3201.5,0.25]
[1736941330239,3.71247865,3201.6,3201.5,0.25]
[1736941330661,6.69242661,3201.6,3201.5,0.25]
[1736941330859,11.44315462,3201.6,3201.5,0.25]
[1736941331171,3.67353,3201.5,3201.4,0.5]
[1736941331930,0.55,3201.5,3201.4,0.5]
[1736941333874,0.55,3201.5,3201.4,1.3109]
[1736941336069,3.67305,3202.0,3201.4,1.3109]
[1736941336291,3.67305,3202.0,3201.9,0.25]
[1736941336765,3.71209345,3202.0,3201.9,0.25]
[1736941338163,3.71209345,3202.0,3201.9,1.3109]
[1736941338164,0.55,3202.0,3201.9,1.3109]
[1736941338648,0.58904024,3202.0,3201.9,1.3109]
[1736941339047,0.62988922,3202.1,3201.9,1.3109]
[1736941339250,2.97994796,3203.1,3202.7,0.25]
[1736941339438,3.7321658,3203.1,3202.9,0.5]
[1736941339654,0.6101858,3203.1,3202.9,0.5]
[1736941340186,3.67207,3203.0,3202.9,0.5]
[1736941340657,9.65201796,3203.0,3202.9,0.5]
[1736941340863,10.47271796,3203.0,3202.9,0.5]
[1736941341175,3.67226,3202.8,3202.7,0.5]
[1736941341479,0.55,3202.7,3202.5,0.5]
[1736941341682,0.0390355,3202.6,3202.5,0.5]
[1736941342782,3.7114955,3202.6,3202.5,0.5]
[1736941343975,6.7114955,3202.6,3202.5,0.5]
[1736941344172,3.55,3202.5,3202.3,0.25]
[1736941344477,9.6916377,3202.4,3202.3,0.25]
[1736941344714,9.65259796,3202.4,3202.3,0.25]
[1736941346253,9.65259796,3202.4,3202.2,0.25]
[1736941346254,6.67275,3202.3,3202.2,0.25]
[1736941346445,7.9502848,3202.3,3202.2,0.25]
[1736941346682,7.9502848,3202.3,3202.0,0.5]
[1736941346683,8.7709848,3202.3,3202.0,0.5]
[1736941346876,3.67295,3202.1,3202.0,0.5]
[1736941347364,3.67295,3202.1,3202.0,0.25]
[1736941347693,3.67295,3202.1,3202.0,0.5]
[1736941347893,4.86234348,3202.1,3202.0,0.5]
[1736941348224,0.55,3202.1,3202.0,0.5]
[1736941350685,0.55,3202.1,3202.0,1.3099]
[1736941353815,0.58903852,3202.1,3202.0,1.3099]
[1736941354098,0.58903852,3202.1,3202.0,0.5]
[1736941356360,0.55,3202.1,3202.0,0.5]
[1736941357107,3.12244,3202.7,3202.5,0.5]
[1736941357304,4.58081929,3202.9,3202.8,0.5]
[1736941357507,6.93977,3202.9,3202.8,0.5]
[1736941357692,6.67217,3202.9,3202.8,0.5]
[1736941358190,3.93947,3203.2,3203.1,0.25]
[1736941358513,3.75847625,3203.2,3203.1,0.5]
[1736941358717,6.75847625,3203.2,3203.1,0.5]
[1736941359117,7.30847625,3203.2,3203.1,0.5]
[1736941368045,4.30847625,3203.2,3203.1,0.5]
[1736941376077,1.18660625,3203.2,3203.1,0.5]
[1736941378347,4.34750219,3203.2,3203.1,0.5]
[1736941383168,4.30847625,3203.2,3203.1,0.5]
[1736941387279,4.73982388,3203.2,3203.1,0.5]
[1736941387919,8.56509916,3203.2,3203.1,0.5]
[1736941388127,8.52607184,3203.2,3203.1,0.25]
[1736941388492,8.52607184,3203.2,3203.1,0.5]
[1736941388828,4.73982388,3203.2,3203.1,0.5]
[1736941389387,4.30847625,3203.2,3203.1,0.5]
[1736941391028,1.18660625,3203.2,3203.1,0.5]
[1736941391236,0.63660625,3203.2,3203.1,0.5]
[1736941391529,0.55,3203.2,3203.1,0.5]
[1736941392832,0.005,3203.4,3203.3,0.25]
[1736941393130,0.005,3203.4,3203.3,0.5]
[1736941393720,1.1725971,3203.4,3203.3,0.5]
[1736941396741,1.16883891,3203.4,3203.3,0.5]
[1736941400553,0.00124181,3203.4,3203.3,1.2565]
[1736941402155,0.00124181,3203.4,3203.3,0.5]
[1736941403181,0.00124181,3203.4,3203.3,1.2565]
[1736941405198,0.00124181,3203.4,3203.3,0.5]
[1736941414084,0.55124181,3203.4,3203.3,0.5]
[1736941415532,3.67292181,3203.4,3203.3,0.5]
[1736941415903,5.65415284,3203.4,3203.3,0.5]
[1736941416228,6.47265284,3203.4,3203.3,0.5]
[1736941418509,0.00124181,3203.4,3203.3,0.5]
[1736941419087,0.00124181,3203.4,3203.3,1.2756]
[1736941421409,0.00124181,3203.4,3203.3,4.54351526]
[1736941421916,0.00124181,3203.4,3203.3,1.2756]
[1736941422544,0.00124181,3203.4,3203.3,4.54351526]
[1736941423051,0.00124181,3203.4,3203.3,7.66529526]
[1736941426531,0.63331447,3203.4,3203.3,7.66529526]
[1736941427436,0.63331447,3203.4,3203.3,5.80339155]
[1736941427632,0.63331447,3203.4,3203.3,8.80339155]
[1736941428451,0.63331447,3203.4,3203.3,12.72488986]
[1736941429768,0.63331447,3203.4,3203.3,8.80339155]
[1736941430638,0.63331447,3203.4,3203.3,12.72488986]
[1736941432135,0.63331447,3203.4,3203.3,8.80339155]
[1736941436049,0.63331447,3203.4,3203.3,8.98339155]
[1736941438791,0.63331447,3203.4,3203.3,0.5]
[1736941438986,0.63331447,3203.4,3203.3,0.25]
[1736941439276,0.63331447,3203.4,3203.3,0.5]
[1736941440289,1.18331447,3203.4,3203.3,0.5]
[1736941440503,3.60643722,3203.4,3203.3,0.5]
[1736941440653,6.72811722,3203.4,3203.3,0.5]
[1736941440875,6.68909747,3203.4,3203.3,0.5]
[1736941441093,6.68909747,3203.4,3203.3,0.25]
[1736941441442,3.12207,3203.0,3202.9,0.25]
[1736941441688,4.45396,3202.7,3202.6,0.25]
[1736941441871,0.55,3202.6,3202.5,0.25]
[1736941442058,7.49309634,3202.6,3202.5,0.25]
[1736941442262,7.45406,3202.6,3202.5,0.25]
[1736941443690,6.67246,3202.6,3202.4,0.25]
[1736941443890,5.34569969,3202.5,3202.4,0.25]
[1736941444105,3.67265,3202.4,3202.3,0.25]
[1736941444307,6.64480408,3202.4,3202.3,0.25]
[1736941444502,6.64480408,3202.4,3202.3,0.5]
[1736941444702,8.16086943,3202.4,3202.3,0.5]
[1736941444918,8.16086943,3202.4,3202.3,0.25]
[1736941448821,8.16086943,3202.4,3202.3,0.5]
[1736941449147,8.16086943,3202.4,3202.3,0.25]
[1736941449631,8.16086943,3202.4,3202.3,0.5]
[1736941450522,8.16086943,3202.4,3202.3,0.25]
[1736941450959,8.16086943,3202.4,3202.3,0.5]
[1736941451769,8.16086943,3202.4,3202.3,0.25]
[1736941451959,8.16086943,3202.4,3202.3,0.5]
[1736941452835,8.16086943,3202.4,3202.3,0.25]
[1736941453231,11.16086943,3202.4,3202.3,0.25]
[1736941453464,11.16086943,3202.4,3202.3,0.5]
[1736941456623,8.18871535,3202.4,3202.3,0.5]
[1736941457116,1.75666141,3202.5,3202.3,0.5]
[1736941457310,3.759228,3202.6,3202.5,0.25]
[1736941457617,4.309228,3202.6,3202.5,0.25]
[1736941458948,1.186728,3202.6,3202.5,0.5]
[1736941459484,0.636728,3202.6,3202.5,0.5]
[1736941459711,0.8063,3202.9,3202.8,0.25]
[1736941459902,4.47847,3202.9,3202.8,0.25]
[1736941460615,5.09786786,3202.9,3202.8,0.25]
[1736941461177,4.29156786,3202.9,3202.8,0.25]
[1736941463394,4.72072465,3202.9,3202.8,0.5]
[1736941463626,8.56605498,3202.9,3202.8,0.25]
[1736941463787,3.67246,3202.6,3202.5,0.25]
[1736941463969,3.71149579,3202.6,3202.5,0.25]
[1736941464165,4.69209678,3202.6,3202.5,0.25]
[1736941466221,4.69209678,3202.6,3202.5,0.230129]
[1736941468706,4.65306099,3202.6,3202.5,0.230129]
[1736941469804,4.692099,3202.6,3202.5,0.230129]
[1736941470519,4.65306099,3202.6,3202.5,0.230129]
[1736941471038,4.69209897,3202.6,3202.5,0.230129]
[1736941471183,4.65306099,3202.6,3202.5,0.230129]
[1736941472102,4.69209898,3202.6,3202.5,0.230129]
[1736941472429,2.37593898,3202.6,3202.2,0.480129]
[1736941472668,6.67275,3202.3,3202.2,0.480129]
[1736941473753,7.42325,3202.3,3202.2,0.480129]
[1736941474967,8.03685671,3202.3,3202.0,0.230129]
[1736941475259,6.64510408,3202.1,3202.0,0.230129]
[1736941477152,3.67295,3202.1,3202.0,0.230129]
[1736941478026,0.55,3202.1,3202.0,0.230129]
[1736941478966,4.10550357,3202.1,3202.0,0.230129]
[1736941479978,4.10550357,3202.1,3201.8,0.7608]
[1736941479979,3.12267,3202.4,3202.3,0.230129]
[1736941480214,3.12242,3202.7,3202.6,0.480129]
[1736941480708,10.30938429,3202.7,3202.6,0.480129]
[1736941480888,11.02085043,3202.7,3202.6,0.480129]
[1736941484286,11.02085043,3202.7,3202.6,0.25]
[1736941484495,12.16585115,3202.7,3202.6,0.25]
[1736941485468,3.12256,3202.5,3202.4,0.230129]
[1736941485667,3.67256,3202.5,3202.4,0.230129]
[1736941485869,6.67256,3202.5,3202.4,0.230129]
[1736941487373,6.67256,3202.5,3202.3,0.25]
[1736941487374,7.42315,3202.4,3202.3,0.25]
[1736941487707,6.67275,3202.3,3202.2,0.480129]
[1736941488317,6.67275,3202.3,3202.2,0.230129]
[1736941490273,6.67275,3202.3,3202.2,0.21695136]
[1736941492877,3.67275,3202.3,3202.2,0.46695136]
[1736941495013,3.12275,3202.3,3202.2,0.46695136]
[1736941495247,3.74819635,3202.7,3202.6,0.46695136]
[1736941495524,3.74819635,3202.7,3202.6,1.27295136]
[1736941495905,4.29819635,3202.7,3202.6,1.27295136]
[1736941496104,3.74819635,3202.7,3202.6,1.27295136]
[1736941496905,4.29819635,3202.7,3202.6,1.27295136]
[1736941499297,3.12256,3202.5,3202.4,0.46695136]
[1736941499508,6.71159814,3202.5,3202.4,0.21695136]
[1736941499712,3.12275,3202.3,3202.0,0.46695136]
[1736941499914,10.40170408,3202.3,3202.2,0.46695136]
[1736941500111,3.12295,3202.1,3202.0,0.21695136]
[1736941500315,3.67295,3202.1,3202.0,0.21695136]
[1736941501637,4.3124434,3202.1,3202.0,0.21695136]
[1736941501933,4.35148676,3202.1,3202.0,0.21695136]
[1736941508168,7.35148676,3202.1,3202.0,0.21695136]
[1736941508473,8.83677953,3202.1,3202.0,0.21695136]
[1736941509867,6.67304,3202.0,3201.9,0.25]
[1736941510075,9.64519408,3202.0,3201.9,0.25]
[1736941510755,3.55613283,3202.7,3202.1,0.25]
[1736941510756,3.12289,3202.2,3202.1,0.25]
[1736941511063,6.12289,3202.2,3202.1,0.25]
[1736941511654,6.67289,3202.2,3202.1,0.25]
[1736941512676,6.67289,3202.2,3202.1,0.46695136]
[1736941512892,7.40170254,3202.2,3202.1,0.46695136]
[1736941513679,3.67289,3202.2,3202.1,0.46695136]
[1736941513907,6.71192905,3202.2,3202.1,0.21695136]
[1736941514112,6.67304,3202.0,3201.8,0.21695136]
[1736941514278,4.49418623,3201.9,3201.8,0.21695136]
[1736941514477,3.67373,3201.3,3201.2,0.25]
[1736941514770,10.01325708,3201.3,3201.2,0.25]
[1736941514980,3.12412,3200.9,3200.8,0.25]
[1736941515166,9.68532991,3200.9,3200.8,0.25]
[1736941515378,9.64627408,3200.9,3200.8,0.25]
[1736941516251,6.67441,3200.6,3200.5,0.25]
[1736941516452,9.64656408,3200.6,3200.5,0.25]
[1736941517480,3.55,3200.5,3200.3,0.25]
[1736941517691,6.6746,3200.4,3200.3,0.25]
[1736941518266,3.12422,3200.8,3200.6,0.25]
[1736941518449,3.75415408,3201.2,3200.8,0.25]
[1736941518671,9.09627408,3200.9,3200.8,0.25]
[1736941518849,9.64627408,3200.9,3200.8,0.25]
[1736941519761,6.67431,3200.7,3200.6,0.25]
[1736941524079,3.67431,3200.7,3200.6,0.25]
[1736941524998,3.12376,3201.3,3201.0,0.25]
[1736941525192,0.7838,3201.9,3201.8,0.25]
[1736941525391,3.12314,3201.9,3201.8,0.25]
[1736941525598,3.76437284,3202.1,3202.0,0.25]
[1736941525811,4.14078012,3202.1,3202.0,0.25]
[1736941526038,3.49938728,3202.1,3202.0,0.25]
[1736941526311,3.12284,3202.3,3202.0,0.25]
[1736941526483,3.0,3202.1,3202.0,0.25]
[1736941527096,3.16189997,3202.2,3202.0,0.25]
[1736941527311,3.12286,3202.2,3202.0,0.25]
[1736941527516,0.55,3202.1,3202.0,0.25]
[1736941527723,0.55,3202.3,3202.2,0.25]
[1736941528020,3.96618566,3202.3,3202.2,0.25]
[1736941528819,0.41618566,3202.3,3202.2,0.25]
[1736941528987,6.52823691,3202.7,3202.6,0.25]
[1736941529701,9.52823691,3202.7,3202.6,0.25]
[1736941531809,3.98372283,3202.7,3202.6,0.25]
[1736941532191,4.02275639,3202.7,3202.6,0.25]
[1736941533295,3.98372283,3202.7,3202.6,0.25]
[1736941534125,0.55,3202.7,3202.6,0.25]
[1736941539443,3.8919,3203.5,3203.3,0.25]
[1736941539757,4.17857624,3203.4,3203.3,0.25]
[1736941539951,0.62857624,3203.4,3203.3,0.25]
[1736941540709,0.00124181,3203.4,3203.3,0.25]
[1736941541749,0.54748268,3203.7,3203.3,0.25]
[1736941542530,0.54748268,3203.7,3203.6,0.25]
[1736941543422,0.625,3204.2,3204.1,0.25]
[1736941544164,4.15949812,3204.2,3204.1,0.25]
[1736941544359,5.49999812,3204.2,3204.1,0.25]
[1736941545574,5.460982,3204.2,3204.1,0.25]
[1736941546128,5.49999999,3204.2,3204.1,0.25]
[1736941546325,3.12109,3204.0,3203.9,0.25]
[1736941546524,6.67109,3204.0,3203.9,0.25]
[1736941547293,6.9672072,3204.0,3203.9,0.25]
[1736941547426,6.12139,3203.7,3203.6,0.25]
[1736941547627,9.09354408,3203.7,3203.6,0.25]
[1736941548071,3.0,3203.6,3203.3,0.25]
[1736941548230,6.09383408,3203.4,3203.3,0.25]
[1736941548420,6.74661555,3203.4,3203.3,0.25]
[1736941549271,6.09383408,3203.4,3203.3,0.25]
[1736941549579,6.12168,3203.4,3203.3,0.25]
[1736941550086,3.0,3203.4,3203.3,0.25]
[1736941550402,0.63549835,3203.7,3203.5,0.25]
[1736941550680,3.0,3204.0,3203.5,0.25]
[1736941550972,3.0,3204.1,3203.9,1.08]
[1736941551735,3.77422161,3204.0,3203.9,0.25]
[1736941551932,6.77422161,3204.0,3203.9,0.25]
[1736941552163,7.49460629,3204.0,3203.9,0.25]
[1736941552344,6.12129,3203.8,3203.7,0.25]
[1736941552552,10.19405605,3203.8,3203.7,0.25]
[1736941552749,10.15503371,3203.8,3203.7,0.25]
[1736941553384,9.09344408,3203.8,3203.7,0.25]
[1736941554393,6.73526629,3204.0,3203.9,0.25]
[1736941555168,0.61411629,3204.0,3203.9,0.25]
[1736941555575,3.12109,3204.0,3203.9,0.25]
[1736941557211,3.16010618,3204.0,3203.9,0.25]
[1736941557620,3.12109,3204.0,3203.9,0.25]
[1736941557822,3.16010615,3204.0,3203.9,0.25]
[1736941558015,6.89809448,3204.0,3203.9,0.25]
[1736941558306,7.61847833,3204.0,3203.9,0.25]
[1736941560007,3.12129,3203.8,3203.7,0.25]
[1736941560211,9.13246607,3203.8,3203.7,0.25]
[1736941560409,9.09344408,3203.8,3203.7,0.25]
[1736941560663,10.46463632,3203.8,3203.7,0.25]
[1736941562363,9.09344408,3203.8,3203.7,0.25]
[1736941564591,9.09344408,3203.8,3202.7,0.18]
[1736941564592,3.12148,3203.6,3203.5,0.25]
[1736941564858,3.12148,3203.6,3203.3,0.25]
[1736941564859,3.12168,3203.4,3203.3,0.25]
[1736941565061,5.97215408,3203.2,3203.1,0.25]
[1736941565365,6.09344408,3203.8,3203.7,0.25]
[1736941565948,9.09344408,3203.8,3203.7,0.25]
[1736941567012,9.71516846,3203.8,3203.7,0.25]
[1736941567452,11.07618731,3203.8,3203.7,0.25]
[1736941567819,6.12148,3203.6,3203.5,0.25]
[1736941568018,6.16050375,3203.6,3203.5,0.25]
[1736941569016,6.12148,3203.6,3203.5,0.25]
[1736941569221,3.0,3203.6,3203.5,0.25]
[1736941569636,0.03902014,3203.7,3203.5,0.25]
[1736941569963,0.62172438,3203.8,3203.7,1.023]
[1736941572262,0.625,3204.2,3204.1,0.25]
[1736941574162,1.24316077,3204.2,3204.1,0.25]
[1736941577089,1.24316077,3204.2,3204.1,1.023]
[1736941580468,0.625,3204.2,3204.1,4.144]
[1736941581068,0.625,3204.2,3204.1,1.023]
[1736941581448,0.625,3204.2,3204.1,1.203]
[1736941586923,3.12061,3204.5,3204.4,0.25]
[1736941587324,3.89451,3204.5,3204.4,0.25]
[1736941587492,3.93351966,3204.5,3204.4,0.25]
[1736941588388,3.89451,3204.5,3204.4,0.25]
[1736941588786,3.03900967,3204.6,3204.4,0.25]
[1736941588979,0.63455736,3204.9,3204.7,0.25]
[1736941590204,0.63455736,3204.9,3204.8,0.953]
[1736941591096,0.63455736,3204.9,3204.8,4.07331]
[1736941591292,0.1663342,3205.3,3205.2,0.25]
[1736941592928,0.78001175,3205.3,3205.2,0.25]
[1736941593665,0.1663342,3205.3,3205.2,1.023]
[1736941594035,0.1663342,3205.3,3205.2,4.14293]
[1736941596067,0.1663342,3205.3,3205.2,1.023]
[1736941596568,0.1663342,3205.3,3205.2,4.14293]
[1736941598127,0.1663342,3205.3,3205.2,1.023]
[1736941598327,0.1663342,3205.3,3205.2,1.204]
[1736941599649,0.1663342,3205.3,3205.2,4.32393]
[1736941601980,0.1663342,3205.3,3205.2,4.87393]
[1736941602700,0.1663342,3205.3,3205.2,4.32393]
[1736941620899,0.1663342,3205.3,3205.2,0.431]
[1736941621490,0.1663342,3205.3,3205.2,0.25]
[1736941622248,0.9586342,3205.3,3205.2,0.25]
[1736941622553,4.0784642,3205.3,3205.2,0.25]
[1736941622984,4.48631062,3205.3,3205.2,0.25]
[1736941623342,4.0784642,3205.3,3205.2,0.25]
[1736941623501,4.70832886,3205.3,3205.2,0.25]
[1736941627354,1.58849886,3205.3,3205.2,0.25]
[1736941628022,0.79619886,3205.3,3205.2,0.25]
[1736941632382,3.91602886,3205.3,3205.2,0.25]
[1736941632728,0.79619886,3205.3,3205.2,0.25]
[1736941634975,0.375,3205.2,3204.9,3.27219759]
[1736941635291,0.375,3205.2,3204.8,4.06689759]
[1736941635642,0.375,3205.2,3204.9,3.27219759]
[1736941635954,0.375,3205.2,3204.8,0.7947]
[1736941635955,0.375,3205.2,3204.8,4.06689759]
[1736941636347,0.375,3205.2,3204.9,3.27219759]
[1736941640370,0.375,3205.2,3204.9,6.39240759]
[1736941641387,0.375,3205.2,3205.0,3.27219759]
[1736941643103,0.375,3205.2,3205.1,3.67002]
[1736941643427,0.375,3205.2,3205.1,4.44952]
[1736941645970,0.375,3205.2,3205.1,7.72009677]
[1736941646873,0.375,3205.2,3205.1,4.44952]
[1736941647996,0.375,3205.2,3205.1,8.00101831]
[1736941648299,0.375,3205.2,3205.1,4.07952]
[1736941648477,0.375,3205.2,3205.0,3.92149831]
[1736941648683,0.375,3205.2,3205.1,0.18]
[1736941648914,0.375,3205.2,3205.1,3.45074381]
[1736941649381,0.375,3205.2,3205.1,0.18]
[1736941649604,0.375,3205.2,3205.1,3.85002]
[1736941651434,0.375,3205.2,3205.1,4.65552]
[1736941652430,0.375,3205.2,3205.1,8.57701831]
[1736941654795,0.375,3205.2,3205.1,11.57701831]
[1736941655814,0.375,3205.2,3205.1,7.65552]
[1736941657853,0.375,3205.2,3205.1,12.23060137]
[1736941658952,0.375,3205.2,3205.1,7.65552]
[1736941660455,0.375,3205.2,3205.1,12.48060137]
[1736941664845,0.375,3205.2,3205.1,12.23060137]
[1736941665447,0.375,3205.2,3205.1,7.65552]
[1736941665743,0.375,3205.2,3205.1,7.47552]
[1736941665928,0.375,3205.2,3205.1,7.65552]
[1736941674750,0.375,3205.2,3205.1,12.23060137]
[1736941681331,0.375,3205.2,3205.1,7.65552]
[1736941681630,0.375,3205.2,3205.1,9.05911064]
[1736941684818,0.375,3205.2,3205.1,13.63419201]
[1736941686254,0.37124486,3205.2,3205.1,13.63419201]
[1736941686859,0.37124486,3205.2,3205.1,16.92719201]
[1736941687195,0.37124486,3205.2,3205.1,13.63419201]
[1736941687940,0.37124486,3205.2,3205.1,11.42510137]
[1736941688445,0.37124486,3205.2,3205.1,6.85002]
[1736941688756,0.37124486,3205.2,3205.1,11.42510137]
[1736941688951,0.37124486,3205.2,3205.1,3.85002]
[1736941689116,1.17974486,3205.2,3205.1,3.85002]
[1736941689321,1.17974486,3205.2,3205.1,7.78017127]
[1736941689630,1.17974486,3205.2,3205.1,3.85002]
[1736941690001,1.17974486,3205.2,3205.1,7.78017127]
[1736941690576,0.37124486,3205.2,3205.1,10.78017127]
[1736941690738,0.37124486,3205.2,3205.1,7.62112]
[1736941691068,0.37124486,3205.2,3205.1,6.85002]
[1736941691218,0.37124486,3205.2,3205.1,11.42510137]
[1736941691419,1.17974486,3205.2,3205.1,7.69510137]
[1736941691745,1.17974486,3205.2,3205.1,4.75508137]
[1736941691937,1.17974486,3205.2,3205.1,0.18]
[1736941692453,1.17974486,3205.2,3205.1,3.45547188]
[1736941693239,1.17974486,3205.2,3205.1,3.27547188]
[1736941693439,1.45471183,3205.2,3205.1,3.27547188]
[1736941693961,0.8085,3205.1,3204.9,0.18]
[1736941694119,0.84750067,3205.1,3204.9,0.18]
[1736941694316,0.8085,3205.0,3204.9,0.18]
[1736941694624,1.26987525,3205.0,3204.9,0.18]
[1736941694838,0.8085,3205.0,3204.9,0.18]
[1736941701870,0.8085,3205.0,3204.4,6.39615188]
[1736941702019,0.8085,3205.0,3204.6,0.18]
[1736941702729,0.8085,3205.0,3204.6,3.30048]
[1736941703320,0.8085,3205.0,3204.7,0.55]
[1736941703523,0.8085,3205.0,3204.8,3.12031]
[1736941706029,0.8085,3205.0,3204.9,3.12022]
[1736941706264,0.8085,3205.0,3204.9,3.67022]
[1736941706446,1.58840473,3205.3,3204.9,3.67014]
[1736941707432,1.58840473,3205.3,3205.0,3.1201]
[1736941708726,1.58840473,3205.3,3204.9,0.55]
[1736941709372,0.8085,3205.2,3204.6,6.57590188]
[1736941709664,0.8085,3205.2,3204.7,3.12038]
[1736941710061,0.8085,3205.2,3204.9,3.12021]
[1736941711081,0.8085,3205.2,3204.7,0.55]
[1736941711374,0.8085,3205.2,3205.0,3.12008]
[1736941713833,0.8085,3205.2,3205.1,3.12002]
[1736941714361,0.1663342,3205.3,3205.1,3.12002]
[1736941714762,0.1663342,3205.3,3204.9,3.67016]
[1736941715991,0.79067199,3205.3,3204.9,3.67019]
[1736941716289,0.79067199,3205.3,3205.0,3.1201]
[1736941716990,0.79067199,3205.3,3204.9,0.55]
[1736941717345,0.1663342,3205.3,3204.9,0.55]
[1736941717552,0.1663342,3205.3,3204.9,3.67014]
[1736941718162,0.1663342,3205.3,3205.0,3.12011]
[1736941721511,0.1663342,3205.3,3204.8,3.82547188]
[1736941721724,0.1663342,3205.3,3204.8,6.94577188]
[1736941724622,0.1663342,3205.3,3204.8,3.27547188]
[1736941724817,0.7699,3205.2,3204.8,3.27547188]
[1736941725171,0.7699,3205.2,3204.7,3.27547188]
[1736941726372,0.7699,3205.2,3204.7,6.39587188]
[1736941727109,0.7699,3205.2,3204.7,3.27547188]
[1736941727471,0.7699,3205.2,3204.7,6.39586188]
[1736941727895,0.7699,3205.2,3204.8,3.27547188]
[1736941728404,0.7699,3205.2,3204.7,6.39586188]
[1736941728633,0.7699,3205.2,3204.8,3.27547188]
[1736941730812,2.17406244,3205.2,3204.8,3.27547188]
[1736941731132,0.76,3205.0,3204.8,3.27547188]
[1736941731333,0.53232111,3205.0,3204.8,3.27547188]
[1736941731494,0.76,3204.9,3204.5,3.45547188]
[1736941731894,0.76,3204.9,3204.5,0.18]
[1736941732227,0.76,3204.9,3204.5,3.45547188]
[1736941732434,0.76,3205.2,3204.6,1.95416244]
[1736941732608,0.76,3205.2,3204.6,5.22963432]
[1736941733131,0.76,3205.2,3204.8,6.39576188]
[1736941733296,0.76,3205.2,3204.9,3.27547188]
[1736941733814,0.76,3205.2,3205.0,3.27547188]
[1736941734735,0.76,3205.2,3204.9,3.27547188]
[1736941735034,0.76,3205.2,3205.0,3.27547188]
[1736941735331,0.76,3205.2,3205.0,3.45547188]
[1736941735518,0.76,3205.2,3205.0,0.18]
[1736941735841,0.76,3205.2,3205.0,3.45547188]
[1736941736949,0.76,3205.2,3205.0,0.18]
[1736941737361,0.76,3205.2,3205.0,3.45547188]
[1736941737733,0.76,3205.2,3205.1,3.27547188]
[1736941738133,0.76,3205.2,3205.0,3.45547188]
[1736941739247,0.76,3205.2,3205.1,3.27547188]